[Event "Titled Tuesday Blitz April 12 Early 2022"]
[White "Winkels, Marcel"]
[Black "Manukyan, Sargis A."]
[WhiteFideId "1003887"]
[BlackFideId "13303970"]
[WhiteElo "1900"]
[BlackElo "2187"]
[Result "0-1"]
[Round "04"]
[TimeControl "180+1"]
[Date "2022.04.13"]
[WhiteClock "0:00:02"]
[BlackClock "0:00:19"]

1. e4 {[%clk 0:03:00]}  c5 {[%clk 0:02:59]} 2. Nf3 {[%clk 0:02:59]}  d6 {[%clk 0:03:00]} 3. d4 {[%clk 0:02:58]}  cxd4 {[%clk 0:03:01]} 4. Nxd4 {[%clk 0:02:59]}  Nf6 {[%clk 0:03:02]} 5. Nc3 {[%clk 0:02:59]}  g6 {[%clk 0:03:02]} 6. Be3 {[%clk 0:02:58]}  Bg7 {[%clk 0:03:02]} 7. f3 {[%clk 0:02:58]}  O-O {[%clk 0:03:03]} 8. Qd2 {[%clk 0:02:58]}  Nc6 {[%clk 0:03:04]} 9. O-O-O {[%clk 0:02:56]}  d5 {[%clk 0:03:02]} 10. exd5 {[%clk 0:02:45]}  Nxd5 {[%clk 0:03:02]} 11. Nxc6 {[%clk 0:02:42]}  bxc6 {[%clk 0:03:03]} 12. Bd4 {[%clk 0:02:39]}  e5 {[%clk 0:02:56]} 13. Bc5 {[%clk 0:02:38]}  Be6 {[%clk 0:02:55]} 14. Ne4 {[%clk 0:02:37]}  Re8 {[%clk 0:02:55]} 15. Kb1 {[%clk 0:02:32]}  h6 {[%clk 0:02:52]} 16. g4 {[%clk 0:02:30]}  Qc7 {[%clk 0:02:52]} 17. h4 {[%clk 0:02:26]}  Red8 {[%clk 0:02:52]} 18. Bd3 {[%clk 0:02:00]}  Nf4 {[%clk 0:02:50]} 19. Qe3 {[%clk 0:01:49]}  Rd7 {[%clk 0:02:40]} 20. g5 {[%clk 0:01:44]}  h5 {[%clk 0:02:39]} 21. Nf6+ {[%clk 0:01:43]}  Bxf6 {[%clk 0:02:40]} 22. gxf6 {[%clk 0:01:43]}  Rad8 {[%clk 0:02:27]} 23. Be7 {[%clk 0:01:38]}  Rb8 {[%clk 0:02:27]} 24. Rhg1 {[%clk 0:01:30]}  Qa5 {[%clk 0:02:23]} 25. b3 {[%clk 0:01:18]}  Qc3 {[%clk 0:02:02]} 26. Qd2 {[%clk 0:01:05]}  Qxd2 {[%clk 0:01:45]} 27. Rxd2 {[%clk 0:01:04]}  Nd5 {[%clk 0:01:43]} 28. Kb2 {[%clk 0:00:54]}  Nxe7 {[%clk 0:01:42]} 29. fxe7 {[%clk 0:00:52]}  Rxe7 {[%clk 0:01:43]} 30. Be4 {[%clk 0:00:52]}  Rc8 {[%clk 0:01:38]} 31. Rd6 {[%clk 0:00:50]}  c5 {[%clk 0:01:28]} 32. c4 {[%clk 0:00:44]}  Kg7 {[%clk 0:01:26]} 33. Rgd1 {[%clk 0:00:42]}  f5 {[%clk 0:01:22]} 34. Bd5 {[%clk 0:00:40]}  Bxd5 {[%clk 0:01:22]} 35. R1xd5 {[%clk 0:00:35]}  Rcc7 {[%clk 0:01:20]} 36. Kc3 {[%clk 0:00:32]}  e4 {[%clk 0:01:11]} 37. fxe4 {[%clk 0:00:31]}  Rxe4 {[%clk 0:01:12]} 38. Rd7+ {[%clk 0:00:26]}  Rxd7 {[%clk 0:01:12]} 39. Rxd7+ {[%clk 0:00:26]}  Kf6 {[%clk 0:01:12]} 40. a3 {[%clk 0:00:19]}  f4 {[%clk 0:01:12]} 41. b4 {[%clk 0:00:19]}  f3 {[%clk 0:00:59]} 42. Rd1 {[%clk 0:00:16]}  Re3+ {[%clk 0:00:42]} 43. Kb2 {[%clk 0:00:15]}  f2 {[%clk 0:00:33]} 44. Rf1 {[%clk 0:00:14]}  Rf3 {[%clk 0:00:32]} 45. bxc5 {[%clk 0:00:12]}  Ke6 {[%clk 0:00:27]} 46. Kc2 {[%clk 0:00:11]}  Kd7 {[%clk 0:00:27]} 47. Kd2 {[%clk 0:00:10]}  Kc6 {[%clk 0:00:28]} 48. Ke2 {[%clk 0:00:09]}  Rxa3 {[%clk 0:00:18]} 49. Kxf2 {[%clk 0:00:08]}  Rh3 {[%clk 0:00:16]} 50. Rg1 {[%clk 0:00:06]}  Rxh4 {[%clk 0:00:17]} 51. Rxg6+ {[%clk 0:00:05]}  Kxc5 {[%clk 0:00:18]} 52. Ra6 {[%clk 0:00:05]}  Rf4+ {[%clk 0:00:17]} 53. Kg3 {[%clk 0:00:03]}  Rf7 {[%clk 0:00:18]} 54. Kh4 {[%clk 0:00:02]}  Rh7 {[%clk 0:00:19]} 55. Ra5+ {[%clk 0:00:02]}  Kxc4 {[%clk 0:00:19]} 0-1


[Site "https://www.chess.com"]

[Event "Titled Tuesday Blitz April 12 Early 2022"]
[White "Xiong, Jeffery"]
[Black "Hansen, Eric"]
[WhiteFideId "2047640"]
[BlackFideId "2606771"]
[WhiteElo "2727"]
[BlackElo "2568"]
[Result "1/2-1/2"]
[Round "04"]
[TimeControl "180+1"]
[Date "2022.04.12"]
[WhiteClock "0:00:06"]
[BlackClock "0:00:07"]

1. e4 {[%clk 0:03:00]}  e5 {[%clk 0:02:46]} 2. Nf3 {[%clk 0:03:00]}  Nc6 {[%clk 0:02:45]} 3. Nc3 {[%clk 0:03:01]}  Nf6 {[%clk 0:02:41]} 4. d4 {[%clk 0:03:01]}  exd4 {[%clk 0:02:41]} 5. Nxd4 {[%clk 0:03:02]}  Bb4 {[%clk 0:02:41]} 6. Nxc6 {[%clk 0:03:02]}  bxc6 {[%clk 0:02:42]} 7. Bd3 {[%clk 0:03:03]}  d5 {[%clk 0:02:41]} 8. exd5 {[%clk 0:03:04]}  O-O {[%clk 0:02:41]} 9. O-O {[%clk 0:03:04]}  cxd5 {[%clk 0:02:42]} 10. h3 {[%clk 0:03:04]}  c6 {[%clk 0:02:42]} 11. Qf3 {[%clk 0:03:05]}  Be6 {[%clk 0:02:29]} 12. Bf4 {[%clk 0:03:04]}  Bd6 {[%clk 0:02:25]} 13. Ne2 {[%clk 0:03:04]}  Re8 {[%clk 0:02:25]} 14. Rfd1 {[%clk 0:03:03]}  Rb8 {[%clk 0:02:21]} 15. b3 {[%clk 0:03:03]}  Qc7 {[%clk 0:02:17]} 16. c4 {[%clk 0:03:00]}  a5 {[%clk 0:02:07]} 17. Rac1 {[%clk 0:02:59]}  a4 {[%clk 0:02:06]} 18. bxa4 {[%clk 0:02:37]}  Rb4 {[%clk 0:02:05]} 19. Bxd6 {[%clk 0:02:21]}  Qxd6 {[%clk 0:02:05]} 20. Bc2 {[%clk 0:02:22]}  Qe5 {[%clk 0:01:38]} 21. c5 {[%clk 0:02:05]}  Bxh3 {[%clk 0:01:15]} 22. Qc3 {[%clk 0:01:23]}  Qg5 {[%clk 0:00:51]} 23. Ng3 {[%clk 0:01:17]}  Rc4 {[%clk 0:00:42]} 24. Qd2 {[%clk 0:01:10]}  Qxd2 {[%clk 0:00:37]} 25. Rxd2 {[%clk 0:01:11]}  Be6 {[%clk 0:00:36]} 26. Ne2 {[%clk 0:01:11]}  Nd7 {[%clk 0:00:29]} 27. Bb3 {[%clk 0:00:49]}  Rxc1+ {[%clk 0:00:24]} 28. Nxc1 {[%clk 0:00:50]}  Nxc5 {[%clk 0:00:24]} 29. Rc2 {[%clk 0:00:50]}  Nxb3 {[%clk 0:00:20]} 30. axb3 {[%clk 0:00:51]}  Bd7 {[%clk 0:00:18]} 31. a5 {[%clk 0:00:44]}  Kf8 {[%clk 0:00:18]} 32. b4 {[%clk 0:00:31]}  Rb8 {[%clk 0:00:16]} 33. Nd3 {[%clk 0:00:12]}  Bf5 {[%clk 0:00:16]} 34. Ne5 {[%clk 0:00:11]}  Rxb4 {[%clk 0:00:09]} 35. Rxc6 {[%clk 0:00:10]}  f6 {[%clk 0:00:07]} 36. Nf3 {[%clk 0:00:08]}  Ra4 {[%clk 0:00:07]} 37. Rc5 {[%clk 0:00:08]}  Be4 {[%clk 0:00:06]} 38. Nd2 {[%clk 0:00:09]}  Ke7 {[%clk 0:00:06]} 39. f3 {[%clk 0:00:09]}  Bg6 {[%clk 0:00:07]} 40. Rxd5 {[%clk 0:00:09]}  Bf7 {[%clk 0:00:06]} 41. Rb5 {[%clk 0:00:09]}  Be8 {[%clk 0:00:06]} 42. Rb7+ {[%clk 0:00:09]}  Kf8 {[%clk 0:00:06]} 43. Nb3 {[%clk 0:00:09]}  Bf7 {[%clk 0:00:06]} 44. Rb8+ {[%clk 0:00:09]}  Ke7 {[%clk 0:00:06]} 45. Rb7+ {[%clk 0:00:09]}  Kf8 {[%clk 0:00:07]} 46. Rb8+ {[%clk 0:00:08]}  Ke7 {[%clk 0:00:07]} 47. Rb7+ {[%clk 0:00:06]}  Kf8 {[%clk 0:00:07]} 1/2-1/2


[Site "https://www.chess.com"]

[Event "Titled Tuesday Blitz April 12 Early 2022"]
[White "Yanayt, Eugene"]
[Black "Lagumina, Giulio"]
[WhiteFideId "2020165"]
[BlackFideId "800619"]
[WhiteElo "2046"]
[BlackElo "2277"]
[Result "1-0"]
[Round "04"]
[TimeControl "180+1"]
[Date "2022.04.13"]
[WhiteClock "0:00:04"]
[BlackClock "0:00:09"]

1. d4 {[%clk 0:03:00]}  d6 {[%clk 0:02:59]} 2. Nf3 {[%clk 0:02:58]}  g6 {[%clk 0:02:58]} 3. c4 {[%clk 0:02:54]}  Bg7 {[%clk 0:02:57]} 4. Nc3 {[%clk 0:02:53]}  e5 {[%clk 0:02:57]} 5. d5 {[%clk 0:02:53]}  f5 {[%clk 0:02:55]} 6. Ng5 {[%clk 0:02:51]}  Nf6 {[%clk 0:02:54]} 7. e4 {[%clk 0:02:37]}  O-O {[%clk 0:02:53]} 8. exf5 {[%clk 0:02:32]}  gxf5 {[%clk 0:02:50]} 9. Be2 {[%clk 0:02:23]}  Na6 {[%clk 0:02:42]} 10. Ne6 {[%clk 0:02:18]}  Bxe6 {[%clk 0:02:39]} 11. dxe6 {[%clk 0:02:18]}  Nc5 {[%clk 0:02:39]} 12. Bg5 {[%clk 0:01:57]}  Nxe6 {[%clk 0:02:39]} 13. h4 {[%clk 0:01:55]}  Qe8 {[%clk 0:02:34]} 14. Qd2 {[%clk 0:01:47]}  Nd4 {[%clk 0:02:19]} 15. O-O-O {[%clk 0:01:36]}  c6 {[%clk 0:02:15]} 16. g4 {[%clk 0:01:19]}  Nxg4 {[%clk 0:02:07]} 17. Bxg4 {[%clk 0:01:18]}  fxg4 {[%clk 0:02:08]} 18. Ne4 {[%clk 0:01:18]}  Qg6 {[%clk 0:02:04]} 19. Qe3 {[%clk 0:01:04]}  Rf3 {[%clk 0:01:57]} 20. Qd2 {[%clk 0:00:56]}  Rf7 {[%clk 0:01:43]} 21. Ng3 {[%clk 0:00:50]}  Raf8 {[%clk 0:01:38]} 22. h5 {[%clk 0:00:43]}  Qe6 {[%clk 0:01:33]} 23. Qc3 {[%clk 0:00:22]}  Rxf2 {[%clk 0:01:29]} 24. Kb1 {[%clk 0:00:20]}  Rc2 {[%clk 0:01:25]} 25. Qd3 {[%clk 0:00:17]}  Rff2 {[%clk 0:01:25]} 26. Bc1 {[%clk 0:00:16]}  Rf3 {[%clk 0:01:07]} 27. Qe4 {[%clk 0:00:13]}  Rxg3 {[%clk 0:01:05]} 28. Rxd4 {[%clk 0:00:13]}  Rgg2 {[%clk 0:01:02]} 29. Rd3 {[%clk 0:00:09]}  Qf6 {[%clk 0:00:55]} 30. Rhd1 {[%clk 0:00:08]}  Bh6 {[%clk 0:00:44]} 31. Rxd6 {[%clk 0:00:04]}  Rxc1+ {[%clk 0:00:35]} 32. Rxc1 {[%clk 0:00:03]}  Qxd6 {[%clk 0:00:34]} 33. Qxg2 {[%clk 0:00:03]}  Bxc1 {[%clk 0:00:33]} 34. Qxg4+ {[%clk 0:00:03]}  Kf7 {[%clk 0:00:30]} 35. Kxc1 {[%clk 0:00:04]}  Qe6 {[%clk 0:00:26]} 36. Qf3+ {[%clk 0:00:03]}  Ke7 {[%clk 0:00:25]} 37. Qe4 {[%clk 0:00:03]}  h6 {[%clk 0:00:23]} 38. Qh7+ {[%clk 0:00:03]}  Kd6 {[%clk 0:00:22]} 39. Qd3+ {[%clk 0:00:04]}  Kc5 {[%clk 0:00:21]} 40. b3 {[%clk 0:00:04]}  a5 {[%clk 0:00:20]} 41. Qe3+ {[%clk 0:00:04]}  Kd6 {[%clk 0:00:19]} 42. Qd2+ {[%clk 0:00:05]}  Kc5 {[%clk 0:00:18]} 43. Qxa5+ {[%clk 0:00:06]}  Kd4 {[%clk 0:00:18]} 44. Qd2+ {[%clk 0:00:06]}  Kc5 {[%clk 0:00:17]} 45. Qe3+ {[%clk 0:00:06]}  Kb4 {[%clk 0:00:15]} 46. Kb2 {[%clk 0:00:05]}  Ka5 {[%clk 0:00:10]} 47. Qc5+ {[%clk 0:00:05]}  Ka6 {[%clk 0:00:10]} 48. b4 {[%clk 0:00:04]}  e4 {[%clk 0:00:09]} 49. Qa5# {[%clk 0:00:04]} 1-0


[Site "https://www.chess.com"]

[Event "Titled Tuesday Blitz April 12 Early 2022"]
[White "Yang, Kaiqi"]
[Black "Adelman, Charles"]
[WhiteFideId "8604398"]
[BlackFideId "2003597"]
[WhiteElo "2373"]
[BlackElo "2343"]
[Result "1-0"]
[Round "04"]
[TimeControl "180+1"]
[Date "2022.04.13"]
[WhiteClock "0:01:15"]
[BlackClock "0:02:07"]

1. e4 {[%clk 0:03:00]}  Nf6 {[%clk 0:03:00]} 2. e5 {[%clk 0:03:00]}  Nd5 {[%clk 0:03:00]} 3. d4 {[%clk 0:03:01]}  d6 {[%clk 0:03:00]} 4. Nf3 {[%clk 0:02:59]}  dxe5 {[%clk 0:03:00]} 5. Nxe5 {[%clk 0:02:59]}  c6 {[%clk 0:03:00]} 6. Bc4 {[%clk 0:02:56]}  Bf5 {[%clk 0:03:00]} 7. h3 {[%clk 0:02:54]}  e6 {[%clk 0:02:57]} 8. Bb3 {[%clk 0:02:52]}  h6 {[%clk 0:02:56]} 9. O-O {[%clk 0:02:50]}  Be7 {[%clk 0:02:55]} 10. Re1 {[%clk 0:02:49]}  O-O {[%clk 0:02:54]} 11. c3 {[%clk 0:02:48]}  Nd7 {[%clk 0:02:54]} 12. Nf3 {[%clk 0:02:48]}  Bh7 {[%clk 0:02:50]} 13. Nbd2 {[%clk 0:02:47]}  N5f6 {[%clk 0:02:45]} 14. Nc4 {[%clk 0:02:43]}  c5 {[%clk 0:02:44]} 15. Nce5 {[%clk 0:02:40]}  cxd4 {[%clk 0:02:40]} 16. Nxf7 {[%clk 0:02:08]}  Rxf7 {[%clk 0:02:37]} 17. Bxe6 {[%clk 0:02:08]}  Nc5 {[%clk 0:02:35]} 18. Bxf7+ {[%clk 0:02:07]}  Kxf7 {[%clk 0:02:35]} 19. cxd4 {[%clk 0:02:05]}  Nce4 {[%clk 0:02:34]} 20. Ne5+ {[%clk 0:01:48]}  Kg8 {[%clk 0:02:30]} 21. f3 {[%clk 0:01:47]}  Ng5 {[%clk 0:02:25]} 22. Bxg5 {[%clk 0:01:23]}  hxg5 {[%clk 0:02:24]} 23. Rc1 {[%clk 0:01:21]}  Nd5 {[%clk 0:02:11]} 24. Qb3 {[%clk 0:01:16]}  Kh8 {[%clk 0:02:07]} 25. Nf7+ {[%clk 0:01:15]} 1-0


[Site "https://www.chess.com"]

[Event "Titled Tuesday Blitz April 12 Early 2022"]
[White "Yeletsky, Ivan"]
[Black "Efremova, Yulia"]
[WhiteFideId "24180327"]
[BlackFideId "14113953"]
[WhiteElo "2319"]
[BlackElo "2107"]
[Result "1-0"]
[Round "04"]
[TimeControl "180+1"]
[Date "2022.04.13"]
[WhiteClock "0:01:54"]
[BlackClock "0:01:14"]

1. e4 {[%clk 0:03:00]}  e6 {[%clk 0:02:58]} 2. d4 {[%clk 0:03:00]}  d5 {[%clk 0:02:57]} 3. exd5 {[%clk 0:02:58]}  exd5 {[%clk 0:02:56]} 4. Bf4 {[%clk 0:02:59]}  Bd6 {[%clk 0:02:54]} 5. Qd2 {[%clk 0:02:55]}  Nf6 {[%clk 0:02:51]} 6. f3 {[%clk 0:02:55]}  O-O {[%clk 0:02:50]} 7. Nc3 {[%clk 0:02:55]}  Re8+ {[%clk 0:02:49]} 8. Nge2 {[%clk 0:02:54]}  Nh5 {[%clk 0:02:43]} 9. Bxd6 {[%clk 0:02:53]}  Qxd6 {[%clk 0:02:43]} 10. O-O-O {[%clk 0:02:54]}  c6 {[%clk 0:02:35]} 11. g4 {[%clk 0:02:54]}  Nf6 {[%clk 0:02:35]} 12. Ng3 {[%clk 0:02:46]}  Qe6 {[%clk 0:02:30]} 13. g5 {[%clk 0:02:33]}  Nfd7 {[%clk 0:02:25]} 14. Bd3 {[%clk 0:02:33]}  Qe3 {[%clk 0:02:15]} 15. Qxe3 {[%clk 0:02:25]}  Rxe3 {[%clk 0:02:13]} 16. Nf5 {[%clk 0:02:26]}  Re8 {[%clk 0:02:03]} 17. Rde1 {[%clk 0:02:22]}  Rf8 {[%clk 0:01:49]} 18. h4 {[%clk 0:02:16]}  Nb6 {[%clk 0:01:47]} 19. Ne7+ {[%clk 0:02:16]}  Kh8 {[%clk 0:01:46]} 20. h5 {[%clk 0:02:16]}  Na6 {[%clk 0:01:32]} 21. g6 {[%clk 0:01:58]}  Nb4 {[%clk 0:01:23]} 22. gxf7 {[%clk 0:01:54]}  Nxd3+ {[%clk 0:01:21]} 23. cxd3 {[%clk 0:01:54]}  Bd7 {[%clk 0:01:14]} 24. Ng6+ {[%clk 0:01:54]} 1-0


[Site "https://www.chess.com"]

[Event "Titled Tuesday Blitz April 12 Early 2022"]
[White "Zakhartsov, Vladimir"]
[Black "Martic, Ivan"]
[WhiteFideId "4145097"]
[BlackFideId "929301"]
[WhiteElo "2491"]
[BlackElo "2317"]
[Result "1-0"]
[Round "04"]
[TimeControl "180+1"]
[Date "2022.04.13"]
[WhiteClock "0:00:17"]
[BlackClock "0:00:21"]

1. e4 {[%clk 0:03:00]}  c5 {[%clk 0:02:57]} 2. Nf3 {[%clk 0:02:55]}  e6 {[%clk 0:02:57]} 3. g3 {[%clk 0:02:55]}  Nc6 {[%clk 0:02:54]} 4. Bg2 {[%clk 0:02:55]}  Nf6 {[%clk 0:02:47]} 5. Nc3 {[%clk 0:02:55]}  e5 {[%clk 0:02:46]} 6. O-O {[%clk 0:02:55]}  d6 {[%clk 0:02:47]} 7. d3 {[%clk 0:02:49]}  Be7 {[%clk 0:02:39]} 8. Nd2 {[%clk 0:02:49]}  O-O {[%clk 0:02:37]} 9. Nc4 {[%clk 0:02:41]}  Rb8 {[%clk 0:02:32]} 10. a4 {[%clk 0:02:41]}  b6 {[%clk 0:02:32]} 11. f4 {[%clk 0:02:37]}  a6 {[%clk 0:02:31]} 12. Nd5 {[%clk 0:02:36]}  b5 {[%clk 0:02:25]} 13. axb5 {[%clk 0:02:32]}  axb5 {[%clk 0:02:25]} 14. fxe5 {[%clk 0:02:31]}  dxe5 {[%clk 0:02:10]} 15. Nce3 {[%clk 0:02:20]}  Be6 {[%clk 0:01:59]} 16. c3 {[%clk 0:02:08]}  Kh8 {[%clk 0:01:46]} 17. Ra6 {[%clk 0:01:45]}  Rc8 {[%clk 0:01:39]} 18. g4 {[%clk 0:01:37]}  h6 {[%clk 0:01:36]} 19. h4 {[%clk 0:01:33]}  Nh7 {[%clk 0:01:30]} 20. Nxe7 {[%clk 0:01:18]}  Qxe7 {[%clk 0:01:28]} 21. Qe1 {[%clk 0:01:15]}  Rfd8 {[%clk 0:01:24]} 22. Nd5 {[%clk 0:01:14]}  Bxd5 {[%clk 0:01:14]} 23. exd5 {[%clk 0:01:13]}  Nb8 {[%clk 0:01:14]} 24. Rb6 {[%clk 0:01:03]}  b4 {[%clk 0:01:09]} 25. g5 {[%clk 0:01:01]}  hxg5 {[%clk 0:01:05]} 26. hxg5 {[%clk 0:00:59]}  Kg8 {[%clk 0:01:03]} 27. g6 {[%clk 0:00:57]}  fxg6 {[%clk 0:00:58]} 28. Re6 {[%clk 0:00:55]}  Qa7 {[%clk 0:00:55]} 29. Rxg6 {[%clk 0:00:45]}  Nf8 {[%clk 0:00:53]} 30. Rg3 {[%clk 0:00:36]}  bxc3 {[%clk 0:00:52]} 31. bxc3 {[%clk 0:00:36]}  c4+ {[%clk 0:00:52]} 32. Be3 {[%clk 0:00:36]}  Qc7 {[%clk 0:00:49]} 33. d4 {[%clk 0:00:35]}  e4 {[%clk 0:00:48]} 34. Bf4 {[%clk 0:00:34]}  Qd7 {[%clk 0:00:42]} 35. Bxe4 {[%clk 0:00:32]}  Re8 {[%clk 0:00:40]} 36. Be5 {[%clk 0:00:31]}  Rxe5 {[%clk 0:00:33]} 37. dxe5 {[%clk 0:00:30]}  Qc7 {[%clk 0:00:33]} 38. Rf4 {[%clk 0:00:25]}  Nbd7 {[%clk 0:00:31]} 39. Rfg4 {[%clk 0:00:24]}  Nxe5 {[%clk 0:00:27]} 40. Rxg7+ {[%clk 0:00:24]}  Qxg7 {[%clk 0:00:28]} 41. Rxg7+ {[%clk 0:00:25]}  Kxg7 {[%clk 0:00:28]} 42. Qg3+ {[%clk 0:00:25]}  Nfg6 {[%clk 0:00:24]} 43. Bxg6 {[%clk 0:00:21]}  Nxg6 {[%clk 0:00:25]} 44. Qd6 {[%clk 0:00:19]}  Rf8 {[%clk 0:00:23]} 45. Qc7+ {[%clk 0:00:19]}  Rf7 {[%clk 0:00:23]} 46. Qxc4 {[%clk 0:00:19]}  Nf4 {[%clk 0:00:23]} 47. d6 {[%clk 0:00:17]}  Kg6 {[%clk 0:00:23]} 48. d7 {[%clk 0:00:17]}  Nh3+ {[%clk 0:00:21]} 49. Kh2 {[%clk 0:00:17]} 1-0


[Site "https://www.chess.com"]

[Event "Titled Tuesday Blitz April 12 Early 2022"]
[White "Zaksaite, Salomeja"]
[Black "Vovk, Orest"]
[WhiteFideId "12801496"]
[BlackFideId "14113490"]
[WhiteElo "1953"]
[BlackElo "2203"]
[Result "1-0"]
[Round "04"]
[TimeControl "180+1"]
[Date "2022.04.13"]
[WhiteClock "0:00:10"]
[BlackClock "0:00:08"]

1. e4 {[%clk 0:03:00]}  Nf6 {[%clk 0:02:57]} 2. e5 {[%clk 0:02:49]}  Nd5 {[%clk 0:02:57]} 3. c4 {[%clk 0:02:48]}  Nb6 {[%clk 0:02:56]} 4. c5 {[%clk 0:02:49]}  Nd5 {[%clk 0:02:56]} 5. Nc3 {[%clk 0:02:49]}  Nxc3 {[%clk 0:02:55]} 6. bxc3 {[%clk 0:02:47]}  e6 {[%clk 0:02:56]} 7. d4 {[%clk 0:02:46]}  b6 {[%clk 0:02:55]} 8. cxb6 {[%clk 0:02:45]}  axb6 {[%clk 0:02:55]} 9. Nf3 {[%clk 0:02:46]}  Be7 {[%clk 0:02:54]} 10. Bd3 {[%clk 0:02:45]}  O-O {[%clk 0:02:54]} 11. h4 {[%clk 0:02:45]}  d6 {[%clk 0:02:52]} 12. Bxh7+ {[%clk 0:02:45]}  Kxh7 {[%clk 0:02:52]} 13. Ng5+ {[%clk 0:02:45]}  Kg6 {[%clk 0:02:24]} 14. Qd3+ {[%clk 0:01:45]}  f5 {[%clk 0:02:18]} 15. h5+ {[%clk 0:01:41]}  Kh6 {[%clk 0:02:18]} 16. Nxe6+ {[%clk 0:01:39]}  Kh7 {[%clk 0:02:17]} 17. Nxd8 {[%clk 0:01:38]}  Bxd8 {[%clk 0:02:18]} 18. exd6 {[%clk 0:01:34]}  cxd6 {[%clk 0:02:13]} 19. Bf4 {[%clk 0:01:34]}  Ba6 {[%clk 0:02:04]} 20. Qg3 {[%clk 0:01:28]}  Re8+ {[%clk 0:01:59]} 21. Kd1 {[%clk 0:01:24]}  Re6 {[%clk 0:01:54]} 22. Bxd6 {[%clk 0:01:22]}  Nd7 {[%clk 0:01:46]} 23. Qf3 {[%clk 0:01:08]}  Be2+ {[%clk 0:01:41]} 24. Qxe2 {[%clk 0:01:07]}  Rxe2 {[%clk 0:01:42]} 25. Kxe2 {[%clk 0:01:08]}  Bg5 {[%clk 0:01:38]} 26. f4 {[%clk 0:01:04]}  Bd8 {[%clk 0:01:29]} 27. Kd3 {[%clk 0:01:04]}  Nf6 {[%clk 0:01:29]} 28. Be5 {[%clk 0:00:56]}  Ne4 {[%clk 0:01:28]} 29. Rhe1 {[%clk 0:00:54]}  Nf2+ {[%clk 0:01:26]} 30. Ke3 {[%clk 0:00:52]}  Ne4 {[%clk 0:01:24]} 31. d5 {[%clk 0:00:45]}  b5 {[%clk 0:01:13]} 32. d6 {[%clk 0:00:40]}  Ra3 {[%clk 0:01:08]} 33. Rec1 {[%clk 0:00:35]}  b4 {[%clk 0:00:59]} 34. g4 {[%clk 0:00:30]}  Nxc3 {[%clk 0:00:47]} 35. Bxc3 {[%clk 0:00:28]}  bxc3 {[%clk 0:00:48]} 36. gxf5 {[%clk 0:00:23]}  Bf6 {[%clk 0:00:46]} 37. Rc2 {[%clk 0:00:21]}  Kg8 {[%clk 0:00:29]} 38. Rd1 {[%clk 0:00:20]}  Ra8 {[%clk 0:00:28]} 39. d7 {[%clk 0:00:20]}  Rd8 {[%clk 0:00:25]} 40. Ke4 {[%clk 0:00:20]}  Kf7 {[%clk 0:00:26]} 41. Rd5 {[%clk 0:00:20]}  Ke7 {[%clk 0:00:25]} 42. a4 {[%clk 0:00:20]}  Kf7 {[%clk 0:00:22]} 43. a5 {[%clk 0:00:20]}  Ke7 {[%clk 0:00:21]} 44. Kd3 {[%clk 0:00:19]}  Kf7 {[%clk 0:00:14]} 45. Rxc3 {[%clk 0:00:19]}  Bxc3 {[%clk 0:00:13]} 46. Kxc3 {[%clk 0:00:19]}  Ke7 {[%clk 0:00:14]} 47. Kb4 {[%clk 0:00:19]}  Rb8+ {[%clk 0:00:14]} 48. Kc5 {[%clk 0:00:17]}  Kd8 {[%clk 0:00:15]} 49. a6 {[%clk 0:00:17]}  Rb1 {[%clk 0:00:14]} 50. a7 {[%clk 0:00:15]}  Ra1 {[%clk 0:00:11]} 51. Kb6 {[%clk 0:00:15]}  g6 {[%clk 0:00:11]} 52. fxg6 {[%clk 0:00:13]}  Rb1+ {[%clk 0:00:10]} 53. Rb5 {[%clk 0:00:12]}  Ra1 {[%clk 0:00:10]} 54. g7 {[%clk 0:00:10]}  Ke7 {[%clk 0:00:08]} 55. g8=Q {[%clk 0:00:09]}  Kxd7 {[%clk 0:00:08]} 56. a8=Q {[%clk 0:00:09]}  Rxa8 {[%clk 0:00:08]} 57. Qxa8 {[%clk 0:00:09]}  Ke6 {[%clk 0:00:09]} 58. Qc6+ {[%clk 0:00:09]}  Ke7 {[%clk 0:00:09]} 59. Re5+ {[%clk 0:00:09]}  Kf7 {[%clk 0:00:09]} 60. Qe6+ {[%clk 0:00:09]}  Kg7 {[%clk 0:00:09]} 61. h6+ {[%clk 0:00:09]}  Kh7 {[%clk 0:00:09]} 62. Qf7+ {[%clk 0:00:09]}  Kxh6 {[%clk 0:00:08]} 63. Rh5# {[%clk 0:00:10]} 1-0


[Site "https://www.chess.com"]